[Event "New Zealand Championship 2023"]
[Site "Wellington"]
[Date "2023.01.10"]
[Round "9.10"]
[White "Wang, Justin Zhide"]
[Black "Archer, Ollie"]
[Result "0-1"]
[TimeControl "90 mins + 30 mins (after 40 moves), additional 30 secs per move"]
[WhiteFideId "4312830"]
[BlackFideId "4317262"]
[WhiteElo "1875"]
[BlackElo "2151"]

1. e4 {[%clk 01:30:59]} {[%emt 00:12:57]} c6 {[%clk 01:30:54]} {[%emt
00:00:07]} 2. d4 {[%clk 01:31:26]} {[%emt 00:00:03]} d5 {[%clk 01:31:19]}
{[%emt 00:00:04]} 3. Nc3 {[%clk 01:31:49]} {[%emt 00:00:07]} dxe4 {[%clk
01:31:41]} {[%emt 00:00:07]} 4. Nxe4 {[%clk 01:32:10]} {[%emt 00:00:10]} Nd7
{[%clk 01:32:03]} {[%emt 00:00:08]} 5. Nf3 {[%clk 01:32:35]} {[%emt 00:00:05]}
Ngf6 {[%clk 01:32:27]} {[%emt 00:00:05]} 6. Nxf6+ {[%clk 01:32:58]} {[%emt
00:00:07]} Nxf6 {[%clk 01:32:50]} {[%emt 00:00:07]} 7. Bd3 {[%clk 01:33:21]}
{[%emt 00:00:08]} Bg4 {[%clk 01:33:01]} {[%emt 00:00:19]} 8. c3 {[%clk
01:33:47]} {[%emt 00:00:05]} e6 {[%clk 01:33:19]} {[%emt 00:00:11]} 9. Bf4
{[%clk 01:32:59]} {[%emt 00:01:18]} Be7 {[%clk 01:33:19]} {[%emt 00:00:29]} 10.
Be2 {[%clk 01:32:55]} {[%emt 00:00:35]} O-O {[%clk 01:33:23]} {[%emt 00:00:25]}
11. O-O {[%clk 01:33:19]} {[%emt 00:00:08]} a5 {[%clk 01:31:18]} {[%emt
00:02:35]} 12. h3 {[%clk 01:32:18]} {[%emt 00:01:31]} Bh5 {[%clk 01:31:39]}
{[%emt 00:00:08]} 13. Ne5 {[%clk 01:30:35]} {[%emt 00:02:14]} Bxe2 {[%clk
01:31:43]} {[%emt 00:00:25]} 14. Qxe2 {[%clk 01:31:00]} {[%emt 00:00:05]} Nd5
{[%clk 01:31:28]} {[%emt 00:00:44]} 15. Bh2 {[%clk 01:30:45]} {[%emt 00:00:46]}
a4 {[%clk 01:31:41]} {[%emt 00:00:18]} 16. a3 {[%clk 01:28:55]} {[%emt
00:02:20]} Bd6 {[%clk 01:28:14]} {[%emt 00:03:55]} 17. f4 {[%clk 01:27:18]}
{[%emt 00:02:07]} f5 {[%clk 01:24:06]} {[%emt 00:04:38]} 18. Rae1 {[%clk
01:25:33]} {[%emt 00:02:15]} Bxe5 {[%clk 01:23:20]} {[%emt 00:01:16]} 19. Qxe5
{[%clk 01:25:50]} {[%emt 00:00:12]} Re8 {[%clk 01:23:41]} {[%emt 00:00:09]} 20.
Kh1 {[%clk 01:19:50]} {[%emt 00:06:30]} Nf6 {[%clk 01:22:56]} {[%emt 00:01:15]}
21. Qe2 {[%clk 01:18:36]} {[%emt 00:01:44]} Qd5 {[%clk 01:22:36]} {[%emt
00:00:51]} 22. Qf3 {[%clk 01:18:38]} {[%emt 00:00:28]} Qxf3 {[%clk 01:22:40]}
{[%emt 00:00:25]} 23. gxf3 {[%clk 01:17:19]} {[%emt 00:01:50]} b5 {[%clk
01:22:57]} {[%emt 00:00:14]} 24. Re5 {[%clk 01:17:36]} {[%emt 00:00:12]} Nd5
{[%clk 01:23:10]} {[%emt 00:00:17]} 25. Rfe1 {[%clk 01:17:08]} {[%emt
00:00:59]} Kf7 {[%clk 01:23:30]} {[%emt 00:00:10]} 26. R5e2 {[%clk 01:13:04]}
{[%emt 00:04:44]} Nb6 {[%clk 01:23:17]} {[%emt 00:00:34]} 27. Bg1 {[%clk
01:08:19]} {[%emt 00:05:15]} Nc4 {[%clk 01:20:41]} {[%emt 00:03:08]} 28. Be3
{[%clk 01:07:39]} {[%emt 00:01:09]} Rad8 {[%clk 01:18:16]} {[%emt 00:02:54]} 29.
Bf2 {[%clk 01:07:25]} {[%emt 00:00:44]} h6 {[%clk 01:18:18]} {[%emt 00:00:27]}
30. Rg1 {[%clk 01:07:03]} {[%emt 00:00:51]} Rg8 {[%clk 01:17:45]} {[%emt
00:01:03]} 31. Be3 {[%clk 01:04:24]} {[%emt 00:03:09]} Rd5 {[%clk 01:17:10]}
{[%emt 00:01:05]} 32. h4 {[%clk 00:59:28]} {[%emt 00:05:25]} Rgd8 {[%clk
01:13:52]} {[%emt 00:03:48]} 33. Bf2 {[%clk 00:59:31]} {[%emt 00:00:27]} Na5
{[%clk 01:09:48]} {[%emt 00:04:35]} 34. h5 {[%clk 00:58:55]} {[%emt 00:01:06]}
Nb3 {[%clk 01:04:19]} {[%emt 00:05:59]} 35. Rg6 {[%clk 00:57:47]} {[%emt
00:01:40]} R5d6 {[%clk 01:03:48]} {[%emt 00:00:59]} 36. Bh4 {[%clk 00:57:56]}
{[%emt 00:00:22]} Rg8 {[%emt 00:00:40]} 37. Re5 {[%clk 00:57:56]} Nd2 {[%clk
01:00:51]} {[%emt 00:03:45]} 38. Kg2 {[%clk 00:54:23]} {[%emt 00:04:03]} Nc4
{[%clk 01:01:12]} {[%emt 00:00:10]} 39. Re2 {[%clk 00:54:47]} {[%emt 00:00:06]}
c5 {[%clk 00:57:31]} {[%emt 00:04:11]} 40. dxc5 {[%clk 01:24:19]} {[%emt
00:00:58]} Rd2 {[%clk 01:27:51]} {[%emt 00:00:10]} 41. Rgxe6 {[%clk 01:24:25]}
{[%emt 00:00:24]} Rxe2+ {[%clk 01:28:14]} {[%emt 00:00:06]} 42. Rxe2 {[%clk
01:24:43]} {[%emt 00:00:12]} Re8 {[%clk 01:28:37]} {[%emt 00:00:16]} 43. Rf2
{[%clk 01:22:10]} {[%emt 00:02:55]} Re1 {[%clk 01:26:48]} {[%emt 00:02:19]} 44.
c6 {[%clk 01:19:20]} {[%emt 00:03:20]} Ke6 {[%clk 01:26:54]} {[%emt 00:00:24]}
45. c7 {[%clk 01:19:45]} {[%emt 00:00:06]} Kd7 {[%clk 01:27:18]} {[%emt
00:00:11]} 46. Rd2+ {[%clk 01:19:50]} {[%emt 00:00:19]} Nxd2 {[%clk 01:27:42]}
{[%emt 00:00:06]} 47. Bxe1 {[%clk 01:20:12]} {[%emt 00:00:08]} Nc4 {[%clk
01:28:08]} {[%emt 00:00:05]} 48. Bf2 {[%clk 01:19:42]} {[%emt 00:00:59]} Kxc7
{[%clk 01:26:50]} {[%emt 00:01:49]} 49. Bd4 {[%clk 01:19:37]} {[%emt 00:00:35]}
Kd7 {[%clk 01:26:39]} {[%emt 00:00:40]} 50. Bxg7 {[%clk 01:20:03]} {[%emt
00:00:04]} Ke7 {[%clk 01:27:02]} {[%emt 00:00:08]} 51. Bxh6 {[%clk 01:18:17]}
{[%emt 00:02:16]} Nxb2 {[%clk 01:27:24]} {[%emt 00:00:08]} 52. Bg5+ {[%clk
01:18:40]} {[%emt 00:00:06]} Kf7 {[%clk 01:27:48]} {[%emt 00:00:06]} 53. h6
{[%clk 01:19:02]} {[%emt 00:00:10]} Nc4 {[%clk 01:28:02]} {[%emt 00:00:14]} 54.
h7 {[%clk 01:19:28]} {[%emt 00:00:04]} Kg7 {[%clk 01:28:28]} {[%emt 00:00:04]}
55. Be7 {[%clk 01:19:42]} {[%emt 00:00:15]} Kxh7 {[%clk 01:28:52]} {[%emt
00:00:06]} 56. Kf2 {[%clk 01:18:37]} {[%emt 00:01:35]} Kg7 {[%clk 01:29:15]}
{[%emt 00:00:07]} 57. Ke2 {[%clk 01:18:50]} {[%emt 00:00:16]} Kf7 {[%clk
01:29:40]} {[%emt 00:00:06]} 58. Bb4 {[%clk 01:19:09]} {[%emt 00:00:11]} Ke6
{[%clk 01:30:03]} {[%emt 00:00:06]} 59. Kf2 {[%clk 01:17:31]} {[%emt 00:02:08]}
Kd5 {[%clk 01:27:14]} {[%emt 00:03:19]} 60. Kg3 {[%clk 01:17:44]} {[%emt
00:00:17]} Nd2 {[%clk 01:27:13]} {[%emt 00:00:32]} 61. c4+ {[%clk 01:13:02]}
{[%emt 00:05:12]} Nxc4 {[%clk 01:27:37]} {[%emt 00:00:06]} 62. Kh4 {[%clk
01:13:28]} {[%emt 00:00:04]} Ne3 {[%clk 01:27:19]} {[%emt 00:00:48]} 63. Kg5
{[%clk 01:13:39]} {[%emt 00:00:18]} Nc2 {[%clk 01:27:31]} {[%emt 00:00:18]} 64.
Bc3 {[%clk 01:11:44]} {[%emt 00:02:26]} Ke6 {[%clk 01:27:02]} {[%emt 00:00:59]}
65. Bb2 {[%clk 01:11:04]} {[%emt 00:01:11]} b4 {[%clk 01:27:26]} {[%emt
00:00:07]} 66. axb4 {[%clk 01:10:19]} {[%emt 00:01:13]} Nxb4 {[%clk 01:27:51]}
{[%emt 00:00:11]} 67. Kh4 {[%clk 01:10:21]} {[%emt 00:00:22]} Nc2 {[%clk
01:28:16]} {[%emt 00:00:07]} 68. Kg3 {[%clk 01:10:47]} {[%emt 00:00:02]} a3
{[%clk 01:28:40]} {[%emt 00:00:05]} 69. Bc3 {[%clk 01:11:08]} {[%emt 00:00:09]}
a2 {[%clk 01:29:05]} {[%emt 00:00:07]} 70. Kf2 {[%clk 01:11:35]} a1=Q {[%clk
01:29:28]} {[%emt 00:00:07]} 71. Bxa1 {[%emt 00:00:07]} Nxa1 {[%clk 01:29:55]}
{[%emt 00:00:02]} 72. Ke3 {[%clk 01:12:28]} {[%emt 00:00:02]} Nb3 {[%clk
01:30:17]} {[%emt 00:00:07]} 73. Kd3 {[%clk 01:12:50]} {[%emt 00:00:08]} Kd5
{[%clk 01:30:41]} {[%emt 00:00:07]} 74. Kc3 {[%clk 01:13:02]} {[%emt 00:00:17]}
Nd4 {[%clk 01:31:06]} {[%emt 00:00:05]} 0-1

[Event "New Zealand Championship 2023"]
[Site "Wellington"]
[Date "2023.01.10"]
[Round "9.11"]
[White "Xing, Zerui"]
[Black "Metge, J Nigel"]
[Result "0-1"]
[TimeControl "90 mins + 30 mins (after 40 moves), additional 30 secs per move"]
[WhiteFideId "3236714"]
[BlackFideId "4300181"]
[WhiteElo "1596"]
[BlackElo "2146"]

1. d4 {[%clk 01:30:57]} {[%emt 00:00:02]} e6 {[%clk 01:30:31]} {[%emt
00:00:28]} 2. Nf3 {[%clk 01:30:52]} {[%emt 00:00:36]} f5 {[%clk 01:30:39]}
{[%emt 00:00:22]} 3. g3 {[%clk 01:31:09]} {[%emt 00:00:14]} Nf6 {[%clk
01:30:55]} {[%emt 00:00:13]} 4. Bg2 {[%clk 01:31:19]} {[%emt 00:00:20]} d5
{[%clk 01:29:51]} {[%emt 00:01:34]} 5. b3 {[%clk 01:29:11]} {[%emt 00:02:39]}
c6 {[%clk 01:27:20]} {[%emt 00:03:00]} 6. O-O {[%clk 01:27:21]} {[%emt
00:02:21]} Ne4 {[%clk 01:25:52]} {[%emt 00:01:58]} 7. Bb2 {[%clk 01:26:03]}
{[%emt 00:01:49]} Nd7 {[%clk 01:25:16]} {[%emt 00:01:05]} 8. Nbd2 {[%clk
01:25:31]} {[%emt 00:01:02]} Bb4 {[%clk 01:23:23]} {[%emt 00:02:24]} 9. Nxe4
{[%clk 01:24:50]} {[%emt 00:01:11]} fxe4 {[%clk 01:23:40]} {[%emt 00:00:12]} 10.
Nd2 {[%clk 01:24:10]} {[%emt 00:01:10]} Qa5 {[%clk 01:22:44]} {[%emt 00:01:25]}
11. Nb1 {[%clk 01:23:00]} {[%emt 00:01:40]} O-O {[%clk 01:22:04]} {[%emt
00:01:10]} 12. a3 {[%clk 01:22:24]} {[%emt 00:01:07]} Bd6 {[%clk 01:21:54]}
{[%emt 00:00:40]} 13. c4 {[%clk 01:21:13]} {[%emt 00:01:42]} b5 {[%clk
01:07:05]} {[%emt 00:15:18]} 14. b4 {[%clk 01:20:19]} {[%emt 00:01:25]} Qd8
{[%clk 01:06:59]} {[%emt 00:00:35]} 15. c5 {[%clk 01:17:50]} {[%emt 00:03:00]}
Bc7 {[%clk 01:01:54]} {[%emt 00:05:34]} 16. Nd2 {[%clk 01:17:27]} {[%emt
00:00:54]} e5 {[%clk 00:59:19]} {[%emt 00:03:04]} 17. Nb3 {[%clk 01:16:33]}
{[%emt 00:01:25]} Qe7 {[%clk 00:57:27]} {[%emt 00:02:21]} 18. dxe5 {[%clk
01:12:58]} {[%emt 00:04:06]} Nxe5 {[%clk 00:56:55]} {[%emt 00:01:03]} 19. Bxe5
{[%clk 01:13:00]} {[%emt 00:00:27]} Bxe5 {[%clk 00:57:11]} {[%emt 00:00:14]} 20.
Nd4 {[%clk 01:12:46]} {[%emt 00:00:43]} Qf6 {[%clk 00:54:04]} {[%emt 00:03:37]}
21. e3 {[%clk 01:12:20]} {[%emt 00:00:57]} Bd7 {[%clk 00:53:22]} {[%emt
00:01:12]} 22. Rc1 {[%clk 01:04:37]} {[%emt 00:08:13]} a5 {[%clk 00:52:35]}
{[%emt 00:01:17]} 23. f4 {[%clk 01:03:38]} {[%emt 00:01:29]} Bxd4 {[%clk
00:46:00]} {[%emt 00:07:04]} 24. Qxd4 {[%clk 01:03:15]} {[%emt 00:00:54]} Qxd4
{[%clk 00:46:19]} {[%emt 00:00:10]} 25. exd4 {[%clk 01:03:33]} {[%emt
00:00:12]} axb4 {[%clk 00:46:46]} {[%emt 00:00:02]} 26. axb4 {[%clk 01:03:49]}
{[%emt 00:00:18]} Ra4 {[%clk 00:47:03]} {[%emt 00:00:10]} 27. Rb1 {[%clk
01:02:50]} {[%emt 00:01:29]} Rfa8 {[%clk 00:47:08]} {[%emt 00:00:25]} 28. h3
{[%clk 00:59:39]} {[%emt 00:03:41]} Ra2 {[%clk 00:47:23]} {[%emt 00:00:14]} 29.
Rfd1 {[%clk 00:57:25]} {[%emt 00:02:44]} R8a3 {[%clk 00:45:48]} {[%emt
00:02:05]} 30. g4 {[%clk 00:57:09]} {[%emt 00:00:46]} Rg3 {[%clk 00:46:04]}
{[%emt 00:00:14]} 31. Ra1 {[%clk 00:57:12]} {[%emt 00:00:28]} Rgxg2+ {[%clk
00:46:13]} {[%emt 00:00:20]} 32. Kh1 {[%clk 00:57:32]} {[%emt 00:00:11]} h5
{[%clk 00:44:36]} {[%emt 00:02:05]} 33. gxh5 {[%clk 00:57:50]} {[%emt
00:00:13]} Bxh3 {[%clk 00:44:42]} {[%emt 00:00:24]} 34. Rxa2 {[%clk 00:58:03]}
{[%emt 00:00:17]} Rxa2 {[%clk 00:45:09]} {[%emt 00:00:03]} 35. Rg1 {[%clk
00:58:21]} {[%emt 00:00:12]} Kf7 {[%clk 00:41:49]} {[%emt 00:03:49]} 36. Rg6
{[%clk 00:58:38]} {[%emt 00:00:13]} e3 {[%clk 00:41:25]} {[%emt 00:00:55]} 37.
Rxc6 {[%clk 00:59:02]} {[%emt 00:00:07]} e2 {[%clk 00:41:17]} {[%emt 00:00:37]}
38. Kg1 {[%clk 00:59:27]} {[%emt 00:00:06]} e1=Q# {[%clk 00:41:36]} {[%emt
00:00:10]} 0-1

[Event "New Zealand Championship 2023"]
[Site "Wellington"]
[Date "2023.01.10"]
[Round "9.12"]
[White "Liu, William Rui"]
[Black "Yu, Zachary"]
[Result "1/2-1/2"]
[TimeControl "90 mins + 30 mins (after 40 moves), additional 30 secs per move"]
[WhiteFideId "4313593"]
[BlackFideId "4311930"]
[WhiteElo "1908"]
[BlackElo "1885"]

1. e4 {[%clk 01:30:54]} {[%emt 00:00:06]} c5 {[%clk 01:30:51]} {[%emt
00:00:10]} 2. Nf3 {[%clk 01:31:16]} {[%emt 00:00:08]} d6 {[%clk 01:31:18]}
{[%emt 00:00:03]} 3. d4 {[%clk 01:31:42]} {[%emt 00:00:04]} cxd4 {[%clk
01:31:44]} {[%emt 00:00:03]} 4. Nxd4 {[%clk 01:32:10]} {[%emt 00:00:03]} Nf6
{[%clk 01:32:08]} {[%emt 00:00:06]} 5. Nc3 {[%clk 01:32:36]} {[%emt 00:00:04]}
a6 {[%clk 01:32:33]} {[%emt 00:00:06]} 6. Be3 {[%clk 01:31:59]} {[%emt
00:01:07]} e5 {[%clk 01:32:56]} {[%emt 00:00:06]} 7. Nf3 {[%clk 01:32:16]}
{[%emt 00:00:13]} Be7 {[%clk 01:33:25]} {[%emt 00:00:02]} 8. Bc4 {[%clk
01:32:39]} {[%emt 00:00:07]} Be6 {[%clk 01:33:50]} {[%emt 00:00:05]} 9. Bb3
{[%clk 01:32:36]} {[%emt 00:00:33]} O-O {[%clk 01:33:55]} {[%emt 00:00:25]} 10.
O-O {[%clk 01:33:01]} {[%emt 00:00:12]} Nc6 {[%clk 01:32:47]} {[%emt 00:01:31]}
11. Bg5 {[%clk 01:32:48]} {[%emt 00:00:43]} Na5 {[%clk 01:31:54]} {[%emt
00:01:23]} 12. Bxf6 {[%clk 01:32:32]} {[%emt 00:00:46]} Bxf6 {[%clk 01:31:46]}
{[%emt 00:00:37]} 13. Nd5 {[%clk 01:32:44]} {[%emt 00:00:18]} Nxb3 {[%clk
01:27:38]} {[%emt 00:04:38]} 14. axb3 {[%clk 01:32:49]} {[%emt 00:00:25]} Bg4
{[%clk 01:27:58]} {[%emt 00:00:10]} 15. Qd3 {[%clk 01:31:07]} {[%emt 00:02:12]}
Rc8 {[%clk 01:25:21]} {[%emt 00:03:07]} 16. c3 {[%clk 01:29:36]} {[%emt
00:02:02]} g6 {[%clk 01:17:36]} {[%emt 00:08:14]} 17. Nd2 {[%clk 01:27:22]}
{[%emt 00:02:44]} Bg7 {[%clk 01:17:22]} {[%emt 00:00:43]} 18. Nc4 {[%clk
01:25:58]} {[%emt 00:01:55]} Be6 {[%clk 00:52:13]} {[%emt 00:25:39]} 19. Nxd6
{[%clk 01:18:43]} {[%emt 00:07:44]} Rb8 {[%clk 00:48:18]} {[%emt 00:04:26]} 20.
Nc4 {[%clk 01:15:12]} {[%emt 00:04:02]} f5 {[%clk 00:47:15]} {[%emt 00:01:32]}
21. Rad1 {[%clk 01:02:18]} {[%emt 00:13:24]} f4 {[%clk 00:47:19]} {[%emt
00:00:40]} 22. f3 {[%clk 01:00:36]} {[%emt 00:01:58]} Qh4 {[%clk 00:45:55]}
{[%emt 00:01:53]} 23. Qe2 {[%clk 00:50:22]} {[%emt 00:10:45]} g5 {[%clk
00:44:34]} {[%emt 00:01:51]} 24. Ne7+ {[%clk 00:42:05]} {[%emt 00:08:47]} Kh8
{[%clk 00:43:04]} {[%emt 00:01:59]} 25. Rd6 {[%clk 00:42:09]} {[%emt 00:00:26]}
Bxc4 {[%clk 00:36:36]} {[%emt 00:06:59]} 26. Qxc4 {[%clk 00:40:30]} {[%emt
00:02:08]} g4 {[%clk 00:37:03]} {[%emt 00:00:03]} 27. Nf5 {[%clk 00:40:30]}
{[%emt 00:00:30]} Rxf5 {[%clk 00:29:41]} {[%emt 00:07:53]} 28. exf5 {[%clk
00:40:26]} {[%emt 00:00:34]} gxf3 {[%clk 00:30:06]} {[%emt 00:00:05]} 29. Rxf3
{[%clk 00:36:33]} {[%emt 00:04:22]} Rg8 {[%clk 00:28:36]} {[%emt 00:02:01]} 30.
Rh3 {[%clk 00:16:53]} {[%emt 00:20:10]} Qe1+ {[%clk 00:26:08]} {[%emt
00:02:57]} 31. Qf1 {[%clk 00:17:15]} {[%emt 00:00:07]} Qe4 {[%clk 00:26:34]}
{[%emt 00:00:04]} 32. Qd3 {[%clk 00:11:48]} {[%emt 00:05:57]} Qe1+ {[%clk
00:26:59]} {[%emt 00:00:06]} 33. Qf1 {[%clk 00:12:12]} {[%emt 00:00:05]} Qe4
{[%clk 00:27:28]} {[%emt 00:00:01]} 34. Qd3 {[%clk 00:12:06]} {[%emt 00:00:36]}
1/2-1/2

[Event "New Zealand Championship 2023"]
[Site "Wellington"]
[Date "2023.01.10"]
[Round "9.13"]
[White "Timergazi, Layla"]
[Black "Mao, Daqi"]
[Result "1/2-1/2"]
[TimeControl "90 mins + 30 mins (after 40 moves), additional 30 secs per move"]
[WhiteTitle "WIM"]
[WhiteFideId "4303733"]
[BlackFideId "4311370"]
[WhiteElo "2136"]
[BlackElo "2085"]

1. d4 {[%clk 01:30:57]} {[%emt 00:00:02]} d5 {[%clk 01:30:55]} {[%emt
00:00:06]} 2. Bf4 {[%clk 01:31:13]} {[%emt 00:00:14]} c5 {[%clk 01:31:17]}
{[%emt 00:00:08]} 3. e3 {[%clk 01:31:00]} {[%emt 00:00:43]} Nc6 {[%clk
01:31:36]} {[%emt 00:00:11]} 4. Nc3 {[%clk 01:30:51]} {[%emt 00:00:39]} cxd4
{[%clk 01:30:42]} {[%emt 00:01:24]} 5. exd4 {[%clk 01:31:05]} {[%emt 00:00:16]}
a6 {[%clk 01:30:34]} {[%emt 00:00:38]} 6. Nf3 {[%clk 01:30:47]} {[%emt
00:00:49]} Bg4 {[%clk 01:29:47]} {[%emt 00:01:16]} 7. Be2 {[%clk 01:30:54]}
{[%emt 00:00:24]} e6 {[%clk 01:29:21]} {[%emt 00:00:56]} 8. Ne5 {[%clk
01:29:04]} {[%emt 00:02:19]} Bxe2 {[%clk 01:29:14]} {[%emt 00:00:36]} 9. Nxe2
{[%clk 01:29:28]} {[%emt 00:00:07]} Nxe5 {[%clk 01:27:40]} {[%emt 00:02:04]} 10.
Bxe5 {[%clk 01:29:25]} {[%emt 00:00:32]} Nf6 {[%clk 01:24:16]} {[%emt
00:03:54]} 11. O-O {[%clk 01:28:58]} {[%emt 00:00:58]} Bd6 {[%clk 01:24:05]}
{[%emt 00:00:41]} 12. Nf4 {[%clk 01:28:57]} {[%emt 00:00:32]} O-O {[%clk
01:21:43]} {[%emt 00:02:51]} 13. c3 {[%clk 01:26:57]} {[%emt 00:02:30]} Bxe5
{[%clk 01:17:22]} {[%emt 00:04:51]} 14. dxe5 {[%clk 01:27:21]} {[%emt
00:00:07]} Nd7 {[%clk 01:17:27]} {[%emt 00:00:25]} 15. Qe2 {[%clk 01:24:13]}
{[%emt 00:03:38]} Qc7 {[%clk 01:15:26]} {[%emt 00:02:31]} 16. Rfe1 {[%clk
01:24:07]} {[%emt 00:00:36]} Rac8 {[%clk 01:13:20]} {[%emt 00:02:35]} 17. Nh5
{[%clk 01:23:16]} {[%emt 00:01:21]} g6 {[%clk 01:09:53]} {[%emt 00:03:57]} 18.
Qg4 {[%clk 01:19:13]} {[%emt 00:04:33]} Nxe5 {[%clk 00:57:54]} {[%emt
00:12:30]} 19. Nf6+ {[%clk 01:08:02]} {[%emt 00:11:38]} Kg7 {[%clk 00:57:54]}
{[%emt 00:00:32]} 20. Qg5 {[%clk 01:03:50]} {[%emt 00:04:42]} Nd7 {[%clk
00:56:53]} {[%emt 00:01:31]} 21. Ng4 {[%clk 01:00:19]} {[%emt 00:04:02]} h5
{[%clk 00:55:01]} {[%emt 00:02:21]} 22. Qh6+ {[%clk 01:00:23]} {[%emt
00:00:26]} Kg8 {[%clk 00:55:22]} {[%emt 00:00:09]} 23. Rxe6 {[%clk 00:57:15]}
{[%emt 00:03:39]} fxe6 {[%clk 00:55:42]} {[%emt 00:00:10]} 24. Qxg6+ {[%clk
00:57:39]} {[%emt 00:00:05]} Kh8 {[%clk 00:56:09]} {[%emt 00:00:04]} 25. Qh6+
{[%clk 00:55:50]} {[%emt 00:02:19]} Kg8 {[%clk 00:56:34]} {[%emt 00:00:06]} 26.
Qg6+ {[%emt 00:00:42]} 1/2-1/2

[Event "New Zealand Championship 2023"]
[Site "Wellington"]
[Date "2023.01.10"]
[Round "9.14"]
[White "Park-Tamati, Philli"]
[Black "Young, Cohen"]
[Result "1/2-1/2"]
[TimeControl "90 mins + 30 mins (after 40 moves), additional 30 secs per move"]
[WhiteFideId "4309090"]
[BlackFideId "4317440"]
[WhiteElo "2065"]
[BlackElo "1994"]

1. d4 {[%clk 01:30:58]} {[%emt 00:00:02]} Nf6 {[%clk 01:30:59]} {[%emt
00:00:01]} 2. Bf4 {[%clk 01:31:19]} {[%emt 00:00:08]} d5 {[%clk 01:31:26]}
{[%emt 00:00:04]} 3. e3 {[%clk 01:31:44]} {[%emt 00:00:05]} c5 {[%clk
01:31:46]} {[%emt 00:00:10]} 4. dxc5 {[%clk 01:32:08]} {[%emt 00:00:05]} e6
{[%clk 01:32:10]} {[%emt 00:00:06]} 5. b4 {[%clk 01:32:35]} {[%emt 00:00:04]}
a5 {[%clk 01:32:33]} {[%emt 00:00:08]} 6. c3 {[%clk 01:33:01]} {[%emt
00:00:03]} axb4 {[%clk 01:32:57]} {[%emt 00:00:06]} 7. cxb4 {[%clk 01:33:27]}
{[%emt 00:00:05]} Bd7 {[%clk 01:33:17]} {[%emt 00:00:10]} 8. Nd2 {[%clk
01:32:52]} {[%emt 00:01:05]} b6 {[%clk 01:33:41]} {[%emt 00:00:06]} 9. cxb6
{[%clk 01:33:09]} {[%emt 00:00:13]} Bxb4 {[%clk 01:34:00]} {[%emt 00:00:11]} 10.
Bc7 {[%clk 01:33:30]} {[%emt 00:00:09]} Qe7 {[%clk 01:34:21]} {[%emt 00:00:09]}
11. b7 {[%clk 01:32:57]} {[%emt 00:01:03]} Ra3 {[%clk 01:34:46]} {[%emt
00:00:05]} 12. Bxb8 {[%clk 01:33:18]} {[%emt 00:00:09]} Ba4 {[%clk 01:35:06]}
{[%emt 00:00:11]} 13. Be5 {[%clk 01:32:56]} {[%emt 00:00:52]} Qxb7 {[%clk
01:35:28]} {[%emt 00:00:08]} 14. Qb1 {[%clk 01:33:16]} {[%emt 00:00:10]} Bxd2+
{[%clk 01:35:48]} {[%emt 00:00:09]} 15. Kxd2 {[%clk 01:33:11]} {[%emt
00:00:34]} Ne4+ {[%clk 01:36:09]} {[%emt 00:00:10]} 16. Ke2 {[%clk 01:31:16]}
{[%emt 00:02:26]} Qc8 {[%clk 01:36:02]} {[%emt 00:00:41]} 17. Ke1 {[%clk
01:04:32]} {[%emt 00:27:09]} Qc5 {[%clk 01:25:12]} {[%emt 00:11:21]} 18. Qb8+
{[%clk 00:46:20]} {[%emt 00:18:42]} Kd7 {[%clk 01:25:37]} {[%emt 00:00:05]} 19.
Qb7+ {[%clk 00:46:09]} {[%emt 00:00:41]} Ke8 {[%clk 01:26:01]} {[%emt
00:00:06]} 20. Qb8+ {[%clk 00:46:25]} {[%emt 00:00:14]} 1/2-1/2